{"text_format":"1","workbook":"xlsx","n_sheets":4,"sheets":["Start","Anchortext distribution","Beregning","Results page"],"not_rendered":{"charts":2,"images":1,"macros":1,"external_links":0,"defined_names":0,"comments":0,"pivot_tables":0},"unopened":[],"bounds":{"document_bytes":16777216,"sheet_cells":100000,"rows_first":2000,"rows_last":500,"rows_between":2000,"halvings":0,"cell_chars":16384,"cell_head_chars":4096},"cells_cut":0,"cells_raw":0,"read":"whole","date_system":"1900"}

{"sheet":"Start","index":0,"n_rows":20,"n_cols":13,"rows_kept":20,"cut":false,"hidden":false,"merged":[]}
[]
[]
[]
[]
[]
[]
[]
[]
[]
[]
[]
[]
[]
[]
[null,null,null,null,null,null,null,null,1,2,3,4,5]
[null,null,null,null,null,null,null,"Competitors"]
[null,null,null,null,null,null,null,"Competitors URL"]
[]
[null,null,null,null,null,null,null,"Client/proejct"]
[null,null,null,null,null,null,null,"URL Client/project"]

{"sheet":"Anchortext distribution","index":1,"n_rows":18,"n_cols":7,"rows_kept":18,"cut":false,"hidden":false,"merged":[]}
[null,"Competitor1","Competitor2","Competitor3","Competitor4","Competitor5","Client/Project"]
["Name",{"$f":"Start!I16","v":0},{"$f":"Start!J16","v":0},{"$f":"Start!K16","v":0},{"$f":"Start!L16","v":0},{"$f":"Start!M16","v":0},{"$f":"Start!I19","v":0}]
["URL:",{"$f":"Start!I17","v":0},{"$f":"Start!J17","v":0},{"$f":"Start!K17","v":0},{"$f":"Start!L17","v":0},{"$f":"Start!M17","v":0},{"$f":"Start!I20","v":0}]
["AHREFS LINKS"]
["Anchortext distribution"]
["Target",0,0,0,0,0,0]
["LSI",0,0,0,0,0,0]
["URL",0,0,0,0,0,0]
["Brand",0,0,0,0,0,0]
["Topic",0,0,0,0,0,0]
["NA",0,0,0,0,0,0]
["MISC",0,0,0,0,0,0]
["Total",{"$f":"SUM(B6:B12)","v":0},{"$f":"SUM(C6:C12)","v":0},{"$f":"SUM(D6:D12)","v":0},0,0,0]
[]
["Last updated",{"$f":"TODAY()","v":"2017-09-18"}]
[]
["© Skjoldby & CO ApS 2017"]
["Made by SEO Ninja Lasse Nielsen"]

{"sheet":"Beregning","index":2,"n_rows":30,"n_cols":20,"rows_kept":30,"cut":false,"hidden":true,"merged":[]}
[null,{"$f":"'Anchortext distribution'!B2","v":0},{"$f":"'Anchortext distribution'!C2","v":0},{"$f":"'Anchortext distribution'!D2","v":0},{"$f":"'Anchortext distribution'!E2","v":0},{"$f":"'Anchortext distribution'!F2","v":0},"Gennemsnit",null,{"$f":"'Anchortext distribution'!G2","v":0},null,null,null,null,null,"Ahrefs:"]
[null,null,null,null,null,null,null,null,null,null,null,null,null,null,{"$f":"IF(N29=\"www\",N30,IF(N23=\"OK\",N16,N20))","v":"0"},{"$f":"IF(O29=\"www\",O30,IF(O23=\"OK\",O16,O20))","v":"0"},"0","0","0","0"]
[{"$f":"'Anchortext distribution'!A5","v":"Anchortext distribution"},{"$f":"'Anchortext distribution'!B6","v":0},{"$f":"'Anchortext distribution'!C6","v":0},{"$f":"'Anchortext distribution'!D6","v":0},{"$f":"'Anchortext distribution'!E6","v":0},{"$f":"'Anchortext distribution'!F6","v":0},null,null,{"$f":"'Anchortext distribution'!G6","v":0},null,null,null,null,null,{"$f":"_xlfn.CONCAT($N$7,O2)","v":"https://ahrefs.com/site-explorer/backlinks/v2/anchors/exact/live/phrases/all/1/refdomains_dofollow_desc?target=0"},{"$f":"_xlfn.CONCAT($N$7,P2)","v":"https://ahrefs.com/site-explorer/backlinks/v2/anchors/exact/live/phrases/all/1/refdomains_dofollow_desc?target=0"},"https://ahrefs.com/site-explorer/backlinks/v2/anchors/exact/live/phrases/all/1/refdomains_dofollow_desc?target=0","https://ahrefs.com/site-explorer/backlinks/v2/anchors/exact/live/phrases/all/1/refdomains_dofollow_desc?target=0","https://ahrefs.com/site-explorer/backlinks/v2/anchors/exact/live/phrases/all/1/refdomains_dofollow_desc?target=0","https://ahrefs.com/site-explorer/backlinks/v2/anchors/exact/live/phrases/all/1/refdomains_dofollow_desc?target=0"]
["LSI",{"$f":"'Anchortext distribution'!B7","v":0},{"$f":"'Anchortext distribution'!C7","v":0},{"$f":"'Anchortext distribution'!D7","v":0},{"$f":"'Anchortext distribution'!E7","v":0},{"$f":"'Anchortext distribution'!F7","v":0},null,null,{"$f":"'Anchortext distribution'!G7","v":0}]
[{"$f":"'Anchortext distribution'!A8","v":"URL"},{"$f":"'Anchortext distribution'!B8","v":0},{"$f":"'Anchortext distribution'!C8","v":0},{"$f":"'Anchortext distribution'!D8","v":0},{"$f":"'Anchortext distribution'!E8","v":0},{"$f":"'Anchortext distribution'!F8","v":0},null,null,{"$f":"'Anchortext distribution'!G8","v":0}]
[{"$f":"'Anchortext distribution'!A9","v":"Brand"},{"$f":"'Anchortext distribution'!B9","v":0},{"$f":"'Anchortext distribution'!C9","v":0},{"$f":"'Anchortext distribution'!D9","v":0},{"$f":"'Anchortext distribution'!E9","v":0},{"$f":"'Anchortext distribution'!F9","v":0},null,null,{"$f":"'Anchortext distribution'!G9","v":0}]
[{"$f":"'Anchortext distribution'!A10","v":"Topic"},{"$f":"'Anchortext distribution'!B10","v":0},{"$f":"'Anchortext distribution'!C10","v":0},{"$f":"'Anchortext distribution'!D10","v":0},{"$f":"'Anchortext distribution'!E10","v":0},{"$f":"'Anchortext distribution'!F10","v":0},null,null,{"$f":"'Anchortext distribution'!G10","v":0},null,null,null,null,"https://ahrefs.com/site-explorer/backlinks/v2/anchors/exact/live/phrases/all/1/refdomains_dofollow_desc?target="]
[{"$f":"'Anchortext distribution'!A11","v":"NA"},{"$f":"'Anchortext distribution'!B11","v":0},{"$f":"'Anchortext distribution'!C11","v":0},{"$f":"'Anchortext distribution'!D11","v":0},{"$f":"'Anchortext distribution'!E11","v":0},{"$f":"'Anchortext distribution'!F11","v":0},null,null,{"$f":"'Anchortext distribution'!G11","v":0}]
[{"$f":"'Anchortext distribution'!A12","v":"MISC"},{"$f":"'Anchortext distribution'!B12","v":0},{"$f":"'Anchortext distribution'!C12","v":0},{"$f":"'Anchortext distribution'!D12","v":0},{"$f":"'Anchortext distribution'!E12","v":0},{"$f":"'Anchortext distribution'!F12","v":0},null,null,{"$f":"'Anchortext distribution'!G12","v":0}]
[{"$f":"'Anchortext distribution'!A13","v":"Total"},{"$f":"'Anchortext distribution'!B13","v":0},{"$f":"'Anchortext distribution'!C13","v":0},{"$f":"'Anchortext distribution'!D13","v":0},{"$f":"'Anchortext distribution'!E13","v":0},{"$f":"'Anchortext distribution'!F13","v":0},null,null,{"$f":"'Anchortext distribution'!G13","v":0}]
[]
["Procentberegning:"]
[null,"Konkurrent1","Konkurrent2","Konkurrent3","Konkurrent4","Konkurrent5",null,null,null,"Kunde",null,null,null,"uden https"]
["Target",{"$f":"IF($B$10>$A$25,B3/$B$10,\"0\")","v":"0"},{"$f":"IF($C$10>$A$25,C3/$C$10,\"0\")","v":"0"},{"$f":"IF($D$10>$A$25,D3/$D$10,\"0\")","v":"0"},{"$f":"IF($E$10>$A$25,E3/$E$10,\"0\")","v":"0"},{"$f":"IF($F$10>$A$25,F3/$F$10,\"0\")","v":"0"},null,{"$f":"SUM((B14+C14+D14+E14+F14)/$A$26)","v":{"$error":"#DIV/0!"}},null,{"$f":"I3/$I$10","v":{"$error":"#DIV/0!"}},null,null,null,{"$f":"'Anchortext distribution'!B3","v":0},{"$f":"'Anchortext distribution'!C3","v":0},{"$f":"'Anchortext distribution'!D3","v":0},{"$f":"'Anchortext distribution'!E3","v":0},{"$f":"'Anchortext distribution'!F3","v":0},{"$f":"'Anchortext distribution'!G3","v":0}]
["LSI",{"$f":"IF($B$10>$A$25,B4/$B$10,\"0\")","v":"0"},{"$f":"IF($C$10>$A$25,C4/$C$10,\"0\")","v":"0"},{"$f":"IF($D$10>$A$25,D4/$D$10,\"0\")","v":"0"},{"$f":"IF($E$10>$A$25,E4/$E$10,\"0\")","v":"0"},{"$f":"IF($F$10>$A$25,F4/$F$10,\"0\")","v":"0"},null,{"$f":"SUM((B15+C15+D15+E15+F15)/$A$26)","v":{"$error":"#DIV/0!"}},null,{"$f":"I4/$I$10","v":{"$error":"#DIV/0!"}}]
["URL","0","0","0","0","0",null,{"$f":"SUM((B16+C16+D16+E16+F16)/$A$26)","v":{"$error":"#DIV/0!"}},null,{"$f":"I5/$I$10","v":{"$error":"#DIV/0!"}},null,null,null,{"$f":"RIGHT(N14,LEN(N14)-8)","v":{"$error":"#VALUE!"}},{"$f":"RIGHT(O14,LEN(O14)-8)","v":{"$error":"#VALUE!"}},{"$error":"#VALUE!"},{"$error":"#VALUE!"},{"$error":"#VALUE!"},{"$error":"#VALUE!"}]
["Brand","0","0","0","0","0",null,{"$error":"#DIV/0!"},null,{"$error":"#DIV/0!"}]
["Topic","0","0","0","0","0",null,{"$error":"#DIV/0!"},null,{"$error":"#DIV/0!"},null,null,null,"uden http"]
["NA","0","0","0","0","0",null,{"$error":"#DIV/0!"},null,{"$error":"#DIV/0!"},null,null,null,{"$f":"'Anchortext distribution'!B3","v":0},{"$f":"'Anchortext distribution'!C3","v":0},{"$f":"'Anchortext distribution'!D3","v":0},{"$f":"'Anchortext distribution'!E3","v":0},{"$f":"'Anchortext distribution'!F3","v":0},{"$f":"'Anchortext distribution'!G3","v":0}]
["MISC","0","0","0","0","0",null,{"$error":"#DIV/0!"},null,{"$error":"#DIV/0!"},null,null,null,{"$f":"RIGHT(N14,LEN(N14)-7)","v":{"$error":"#VALUE!"}},{"$f":"RIGHT(O14,LEN(O14)-7)","v":{"$error":"#VALUE!"}},{"$f":"RIGHT(P14,LEN(P14)-7)","v":{"$error":"#VALUE!"}},{"$error":"#VALUE!"},{"$error":"#VALUE!"},{"$f":"RIGHT(S14,LEN(S14)-7)","v":{"$error":"#VALUE!"}}]
["I alt",{"$f":"SUM(B14:B20)","v":0},{"$f":"SUM(C14:C20)","v":0},{"$f":"SUM(D14:D20)","v":0},{"$f":"SUM(E14:E20)","v":0},{"$f":"SUM(F14:F20)","v":0},null,{"$error":"#DIV/0!"},null,{"$f":"I10/$I$10","v":{"$error":"#DIV/0!"}}]
[]
[null,{"$f":"B14+B15+B16+B17+B18+B19+B20","v":0},{"$f":"C14+C15+C16+C17+C18+C19+C20","v":0},0,0,0,null,null,null,null,null,null,null,{"$f":"IF(ISNUMBER(FIND(\"https\",'Anchortext distribution'!B3)),\"OK\", \"Ikke OK\")","v":"Ikke OK"},{"$f":"IF(ISNUMBER(FIND(\"https\",'Anchortext distribution'!C3)),\"OK\", \"Ikke OK\")","v":"Ikke OK"},{"$f":"IF(ISNUMBER(FIND(\"https\",'Anchortext distribution'!D3)),\"OK\", \"Ikke OK\")","v":"Ikke OK"},{"$f":"IF(ISNUMBER(FIND(\"https\",'Anchortext distribution'!E3)),\"OK\", \"Ikke OK\")","v":"Ikke OK"},{"$f":"IF(ISNUMBER(FIND(\"https\",'Anchortext distribution'!F3)),\"OK\", \"Ikke OK\")","v":"Ikke OK"},{"$f":"IF(ISNUMBER(FIND(\"https\",'Anchortext distribution'!G3)),\"OK\", \"Ikke OK\")","v":"Ikke OK"}]
[null,null,null,null,null,{"$f":"IF(F23>E25,\"1\",\"\")","v":""}]
[0]
[{"$f":"SUM(B23:F23)","v":0},null,null,null,null,null,null,null,null,null,null,null,null,"www"]
[null,null,null,null,null,null,null,null,null,null,null,null,null,{"$f":"'Anchortext distribution'!B3","v":0}]
[]
[null,null,null,null,null,null,null,null,null,null,null,null,null,{"$f":"IF(ISNUMBER(FIND(\"http\",'Anchortext distribution'!B3)),\"OK\", \"www\")","v":"www"},{"$f":"IF(ISNUMBER(FIND(\"http\",'Anchortext distribution'!C3)),\"OK\", \"www\")","v":"www"},{"$f":"IF(ISNUMBER(FIND(\"http\",'Anchortext distribution'!D3)),\"OK\", \"www\")","v":"www"},{"$f":"IF(ISNUMBER(FIND(\"http\",'Anchortext distribution'!E3)),\"OK\", \"www\")","v":"www"},{"$f":"IF(ISNUMBER(FIND(\"http\",'Anchortext distribution'!F3)),\"OK\", \"www\")","v":"www"},{"$f":"IF(ISNUMBER(FIND(\"http\",'Anchortext distribution'!G3)),\"OK\", \"www\")","v":"www"}]
[null,null,null,null,null,null,null,null,null,null,null,null,null,{"$f":"RIGHT(N14,LEN(N14))","v":"0"},{"$f":"RIGHT(O14,LEN(O14))","v":"0"},"0","0","0","0"]

{"sheet":"Results page","index":3,"n_rows":8,"n_cols":3,"rows_kept":8,"cut":false,"hidden":false,"merged":[]}
[null,"Average for keyword","Client/Project"]
[{"$f":"Beregning!A14","v":"Target"},{"$f":"Beregning!H14","v":{"$error":"#DIV/0!"}},{"$f":"Beregning!J14","v":{"$error":"#DIV/0!"}}]
["LSI",{"$f":"Beregning!H15","v":{"$error":"#DIV/0!"}},{"$f":"Beregning!J15","v":{"$error":"#DIV/0!"}}]
[{"$f":"Beregning!A16","v":"URL"},{"$f":"Beregning!H16","v":{"$error":"#DIV/0!"}},{"$f":"Beregning!J16","v":{"$error":"#DIV/0!"}}]
[{"$f":"Beregning!A17","v":"Brand"},{"$f":"Beregning!H17","v":{"$error":"#DIV/0!"}},{"$f":"Beregning!J17","v":{"$error":"#DIV/0!"}}]
[{"$f":"Beregning!A18","v":"Topic"},{"$f":"Beregning!H18","v":{"$error":"#DIV/0!"}},{"$f":"Beregning!J18","v":{"$error":"#DIV/0!"}}]
[{"$f":"Beregning!A19","v":"NA"},{"$f":"Beregning!H19","v":{"$error":"#DIV/0!"}},{"$f":"Beregning!J19","v":{"$error":"#DIV/0!"}}]
[{"$f":"Beregning!A20","v":"MISC"},{"$f":"Beregning!H20","v":{"$error":"#DIV/0!"}},{"$f":"Beregning!J20","v":{"$error":"#DIV/0!"}}]